bitfinex/quotes_BTCUSD_20250730
["timestamp","ask_amount","ask_price","bid_price","bid_amount"]
[1753874504140,0.07981572,118060.0,118050.0,0.35905131]
[1753874504396,0.07981565,118060.0,118050.0,0.35905131]
[1753874504879,0.26938106,118060.0,118050.0,0.01844902]
[1753874505112,0.5898187,118060.0,118050.0,0.13564]
[1753874505564,0.27937822,118060.0,118050.0,0.13564]
[1753874505780,0.2842887,118060.0,118050.0,0.13564]
[1753874506003,0.27581879,118060.0,118050.0,0.13564]
[1753874506256,0.27781879,118060.0,118050.0,0.13564]
[1753874507597,0.27481879,118060.0,118050.0,0.13464]
[1753874507818,0.29057359,118060.0,118050.0,0.13564]
[1753874508032,0.29357359,118060.0,118050.0,0.13564]
[1753874508477,0.27781879,118060.0,118050.0,0.13564]
[1753874509355,0.61664879,118060.0,118050.0,0.13564]
[1753874510286,0.58971225,118060.0,118050.0,0.14411098]
[1753874510500,0.58971225,118060.0,118050.0,0.31353071]
[1753874510734,0.38096675,118060.0,118050.0,0.69472229]
[1753874510956,0.38448603,118060.0,118050.0,0.68625181]
[1753874511184,0.38448603,118060.0,118050.0,0.70319298]
[1753874511402,0.40728603,118060.0,118050.0,0.392752]
[1753874511625,0.41575586,118060.0,118050.0,0.366972]
[1753874512054,0.40728603,118060.0,118050.0,0.366972]
[1753874512255,0.40728596,118060.0,118050.0,0.366972]
[1753874512466,0.41575579,118060.0,118050.0,0.366972]
[1753874512695,0.41575572,118060.0,118050.0,0.366972]
[1753874512905,0.42422563,118060.0,118050.0,0.366972]
[1753874513348,0.42422563,118060.0,118050.0,0.35003097]
[1753874513562,0.42422563,118060.0,118050.0,0.35850152]
[1753874513773,0.42422563,118060.0,118050.0,0.366972]
[1753874514006,0.41575572,118060.0,118050.0,0.366972]
[1753874514475,0.41575572,118060.0,118050.0,0.389652]
[1753874514946,0.40728596,118060.0,118050.0,0.70319248]
[1753874515165,0.37601627,118060.0,118050.0,0.70319248]
[1753874515381,0.37505627,118060.0,118050.0,0.78766978]
[1753874515596,0.36079,118060.0,118050.0,0.78766978]
[1753874515811,0.38475962,118060.0,118050.0,0.78714978]
[1753874516025,0.37629,118060.0,118050.0,0.78714978]
[1753874516908,0.37629,118060.0,118050.0,0.77020875]
[1753874517137,0.37629,118060.0,118050.0,0.34104043]
[1753874517138,0.42976943,118060.0,118050.0,0.34104043]
[1753874517344,0.42976943,118060.0,118050.0,0.2069205]
[1753874517561,0.42129938,118060.0,118050.0,0.35798167]
[1753874517799,0.41282962,118060.0,118050.0,0.35798167]
[1753874518019,0.42129931,118060.0,118050.0,0.34951119]
[1753874518239,0.42976914,118060.0,118050.0,0.35798174]
[1753874518452,0.42976914,118060.0,118050.0,0.35798167]
[1753874518663,0.42129931,118060.0,118050.0,0.35798167]
[1753874518876,0.40436,118060.0,118050.0,0.35798167]
[1753874519099,0.37629,118060.0,118050.0,0.69110215]
[1753874519312,0.37629,118060.0,118050.0,0.69420215]
[1753874521689,0.36079,118060.0,118050.0,0.69420215]
[1753874521896,0.34479,118060.0,118050.0,0.77867945]
[1753874523011,0.36079,118060.0,118050.0,0.77867945]
[1753874523855,0.34479,118060.0,118050.0,0.77867945]
[1753874524100,0.36009,118060.0,118050.0,0.77867945]
[1753874524338,0.37609,118060.0,118050.0,0.77867945]
[1753874524764,0.39889,118060.0,118050.0,0.75289945]
[1753874525405,0.39889,118060.0,118050.0,0.74442897]
[1753874525652,0.40099,118060.0,118050.0,0.75289945]
[1753874526091,0.40099,118060.0,118050.0,0.44245897]
[1753874526335,0.39889,118060.0,118050.0,0.77521945]
[1753874526552,0.37609,118060.0,118050.0,0.77831945]
[1753874526761,0.36009,118060.0,118050.0,0.77831945]
[1753874527166,0.34479,118060.0,118050.0,0.77831945]
[1753874527382,0.36009,118060.0,118050.0,0.77831945]
[1753874527628,0.36009,118060.0,118050.0,0.46787897]
[1753874527818,0.36009,118060.0,118050.0,0.77831945]
[1753874528261,0.37559,118060.0,118050.0,0.77831945]
[1753874528710,0.41742945,118060.0,118050.0,0.75253945]
[1753874528966,0.41212962,118060.0,118050.0,0.75253945]
[1753874530112,0.40366,118060.0,118050.0,0.75253945]
[1753874530556,0.41212962,118060.0,118050.0,0.75253945]
[1753874532105,0.42906936,118060.0,118050.0,0.18997875]
[1753874532334,0.42906936,118060.0,118050.0,0.34696119]
[1753874532555,0.42059938,118060.0,118050.0,0.36390222]
[1753874532794,0.42906921,118060.0,118050.0,0.34696119]
[1753874533001,0.43753912,118060.0,118050.0,0.35543174]
[1753874533219,0.42059938,118060.0,118050.0,0.36390222]
[1753874533442,0.41212962,118060.0,118050.0,0.36390222]
[1753874533656,0.41212962,118060.0,118050.0,0.6764527]
[1753874534084,0.40366,118060.0,118050.0,0.6764527]
[1753874534300,0.40049,118060.0,118050.0,0.6764527]
[1753874536783,0.39839,118060.0,118050.0,0.6764527]
[1753874537000,0.37559,118060.0,118050.0,0.39179222]
[1753874537228,0.39839,118060.0,118050.0,0.7022327]
[1753874537578,0.37559,118060.0,118050.0,0.7022327]
[1753874537821,0.36009,118060.0,118050.0,0.7022327]
[1753874538866,0.37519,118060.0,118050.0,0.7022327]
[1753874540185,0.40004,118060.0,118050.0,0.7022327]
[1753874540921,0.40004,118060.0,118050.0,0.39179222]
[1753874541141,0.40004,118060.0,118050.0,0.6764527]
[1753874541361,0.40207,118060.0,118050.0,0.6764527]
[1753874541578,0.41053976,118060.0,118050.0,0.3406005]
[1753874541790,0.42200959,118060.0,118050.0,0.34696112]
[1753874542001,0.4910137,118060.0,118050.0,0.30365973]
[1753874542214,0.49948396,118060.0,118050.0,0.31213071]
[1753874542422,0.4910137,118060.0,118050.0,0.32060162]
[1753874542645,0.43047979,118060.0,118050.0,0.32907246]
[1753874543113,0.42200967,118060.0,118050.0,0.33754323]
[1753874543337,0.43047972,118060.0,118050.0,0.32060162]
[1753874543584,0.61879092,118060.0,118050.0,0.30365973]
[1753874543820,0.44938554,118060.0,118050.0,0.30365973]
[1753874544038,0.42200967,118060.0,118050.0,0.31213057]
[1753874544260,0.43047972,118060.0,118050.0,0.31213057]
[1753874544485,0.42200967,118060.0,118050.0,0.32060134]
[1753874544677,0.42200967,118060.0,118050.0,0.32907203]
[1753874544953,0.41353976,118060.0,118050.0,0.32907203]
[1753874545173,0.42200967,118060.0,118050.0,0.32907203]
[1753874545423,0.43047972,118060.0,118050.0,0.31213057]
[1753874545875,0.42200967,118060.0,118050.0,0.32060134]
[1753874546096,0.43047972,118060.0,118050.0,0.32060134]
[1753874546341,0.42200967,118060.0,118050.0,0.33754265]
[1753874546559,0.43047965,118060.0,118050.0,0.32060134]
[1753874546797,0.43047965,118060.0,118050.0,0.31213057]
[1753874547427,0.43894977,118060.0,118050.0,0.31213057]
[1753874547634,0.43894977,118060.0,118050.0,0.30365973]
[1753874547850,0.43894977,118060.0,118050.0,0.31213064]
[1753874548070,0.43894977,118060.0,118050.0,0.32060148]
[1753874548693,0.42200967,118060.0,118050.0,0.33754294]
[1753874548900,0.41353976,118060.0,118050.0,0.34601342]
[1753874549345,0.42200952,118060.0,118050.0,0.33754294]
[1753874549569,0.41353969,118060.0,118050.0,0.3460132]
[1753874549795,0.42200952,118060.0,118050.0,0.33754236]
[1753874550014,0.41353969,118060.0,118050.0,0.34601284]
[1753874550466,0.41353969,118060.0,118050.0,0.32060119]
[1753874550739,0.4220096,118060.0,118050.0,0.32907181]
[1753874550962,0.4220096,118060.0,118050.0,0.33754236]
[1753874551430,0.43047972,118060.0,118050.0,0.32907217]
[1753874551612,0.4220096,118060.0,118050.0,0.32907203]
[1753874551750,0.43047958,118060.0,118050.0,0.32907203]
[1753874551974,0.43047958,118060.0,118050.0,0.32060148]
[1753874552347,0.43894977,118060.0,118050.0,0.32907217]
[1753874552556,0.43894977,118060.0,118050.0,0.32060148]
[1753874552766,0.43047958,118060.0,118050.0,0.32907217]
[1753874552991,0.44741996,118060.0,118050.0,0.32060155]
[1753874553244,0.4389497,118060.0,118050.0,0.18736155]
[1753874553475,0.99224222,118060.0,118050.0,0.13392]
[1753874553931,0.99224222,118060.0,118050.0,0.001]
[1753874554616,0.68180174,118060.0,118050.0,0.001]
[1753874554854,0.99224222,118060.0,118050.0,0.001]
[1753874556025,0.68180174,118060.0,118050.0,0.001]
[1753874556254,0.99224222,118060.0,118050.0,0.001]
[1753874556483,0.68180174,118060.0,118050.0,0.001]
[1753874558716,1.12508222,118060.0,118050.0,0.001]
[1753874559117,0.81464174,118060.0,118050.0,0.001]
[1753874560559,0.80873278,118060.0,118050.0,0.001]
[1753874560785,0.80873278,118060.0,118050.0,0.00947098]
[1753874561002,0.80873278,118060.0,118050.0,0.001]
[1753874561221,0.80873278,118060.0,118050.0,0.00947098]
[1753874561442,0.80873278,118060.0,118050.0,0.17889071]
[1753874561670,0.40111,118060.0,118050.0,0.51690342]
[1753874561900,0.38269962,118060.0,118050.0,0.5511239]
[1753874562152,0.37519,118060.0,118050.0,0.5511239]
[1753874562398,0.34479,118060.0,118050.0,0.56857292]
[1753874565344,0.34479,118060.0,118050.0,0.66865022]
[1753874565562,0.34479,118060.0,118050.0,0.68485022]
[1753874568914,0.34383,118060.0,118050.0,0.68485022]
[1753874569127,0.34479,118060.0,118050.0,0.68485022]
[1753874569850,0.34179,118060.0,118050.0,0.68385022]
[1753874570153,0.34079,118060.0,118050.0,0.68585022]
[1753874570675,0.34079,118060.0,118050.0,0.68685022]
[1753874571423,0.34079,118060.0,118050.0,0.65505022]
[1753874578790,0.34079,118060.0,118050.0,0.34460974]
[1753874579056,0.34079,118060.0,118050.0,0.65505022]
[1753874581694,0.33983,118060.0,118050.0,0.65505022]
[1753874582574,0.34079,118060.0,118050.0,0.65505022]
[1753874582799,0.33983,118060.0,118050.0,0.65505022]
[1753874583050,0.34079,118060.0,118050.0,0.65505022]
[1753874583268,0.33983,118060.0,118050.0,0.65505022]
[1753874583721,0.34079,118060.0,118050.0,0.65505022]
[1753874584447,0.33983,118060.0,118050.0,0.65505022]
[1753874584664,0.34079,118060.0,118050.0,0.65505022]
[1753874584893,0.39771,118060.0,118050.0,0.62930022]
[1753874585104,0.40082,118060.0,118050.0,0.62930022]
[1753874585324,0.40082,118060.0,118050.0,0.29975871]
[1753874585325,0.40928962,118060.0,118050.0,0.29975871]
[1753874585573,0.41775938,118060.0,118050.0,0.44885988]
[1753874585803,0.40082,118060.0,118050.0,0.44885988]
[1753874586781,0.40082,118060.0,118050.0,0.75930036]
[1753874592057,0.40082,118060.0,118050.0,0.44885988]
[1753874592287,0.40082,118060.0,118050.0,0.75930036]
[1753874594345,0.40082,118060.0,118050.0,0.76141036]
[1753874599257,0.40082,118060.0,118050.0,0.75930036]
[1753874599925,0.40082,118060.0,118050.0,0.76145036]
[1753874600806,0.40082,118060.0,118050.0,0.75930036]
[1753874602395,0.40082,118060.0,118050.0,0.76145036]
[1753874603343,0.40082,118060.0,118050.0,0.75930036]
[1753874603589,0.40082,118060.0,118050.0,0.44885988]
[1753874603839,0.40082,118060.0,118050.0,0.75930036]
[1753874604741,0.40928969,118060.0,118050.0,0.2237521]
[1753874605027,0.4177596,118060.0,118050.0,0.36434272]
[1753874605275,0.4177596,118060.0,118050.0,0.35587174]
[1753874605496,0.41775952,118060.0,118050.0,0.36434186]
[1753874605708,0.4262295,118060.0,118050.0,0.35587138]
[1753874605928,0.41775952,118060.0,118050.0,0.36434186]
[1753874606181,0.41775952,118060.0,118050.0,0.02044902]
[1753874606182,0.67164299,118060.0,118050.0,0.02044902]
[1753874606441,0.70301423,118060.0,118050.0,0.13768]
[1753874606676,1.01345471,118060.0,118050.0,0.13768]
[1753874606897,1.01345471,118060.0,118050.0,0.13668]
[1753874606898,0.70301423,118060.0,118050.0,0.13668]
[1753874607354,0.70501423,118060.0,118050.0,0.13768]
[1753874607573,1.01545471,118060.0,118050.0,0.13768]
[1753874607794,1.01445471,118060.0,118050.0,0.13568]
[1753874608447,1.01845471,118060.0,118050.0,0.13668]
[1753874609136,1.01845471,118060.0,118050.0,0.002]
[1753874609361,1.59395943,118060.0,118050.0,0.002]
[1753874611648,1.27951895,118060.0,118050.0,0.001]
[1753874611860,1.58995943,118060.0,118050.0,0.001]
[1753874612058,1.61488441,118060.0,118050.0,0.001]
[1753874612264,1.62088441,118060.0,118050.0,0.002]
[1753874614208,1.60513699,118060.0,118050.0,0.002]
[1753874614410,1.60313699,118060.0,118050.0,0.001]
[1753874614798,1.60613699,118060.0,118050.0,0.002]
[1753874616642,1.60612498,118060.0,118050.0,0.002]
[1753874617684,1.2955245,118060.0,118050.0,0.002]
[1753874617884,1.60596498,118060.0,118050.0,0.002]
[1753874618295,1.60596414,118060.0,118050.0,0.002]
[1753874619818,1.13547868,118060.0,118050.0,0.002]
[1753874620695,1.12700863,118060.0,118050.0,0.002]
[1753874620904,1.43744911,118060.0,118050.0,0.002]
[1753874621827,1.12700863,118060.0,118050.0,0.002]
[1753874622281,1.13236956,118060.0,118050.0,0.00415]
[1753874622500,0.88599657,118060.0,118050.0,0.19829973]
[1753874622724,0.43706927,118060.0,118050.0,0.50874021]
[1753874622942,0.4604487,118060.0,118050.0,0.20153973]
[1753874623160,0.44607945,118060.0,118050.0,0.21001064]
[1753874623801,0.45454936,118060.0,118050.0,0.20153973]
[1753874624015,0.45454936,118060.0,118050.0,0.21001071]
[1753874624241,0.48323677,118060.0,118050.0,0.20153973]
[1753874624891,0.65264215,118060.0,118050.0,0.20153973]
[1753874625111,0.64417296,118060.0,118050.0,0.20153973]
[1753874625571,0.63570305,118060.0,118050.0,0.03212]
[1753874626018,0.63570305,118060.0,118050.0,0.00415]
[1753874626237,0.64160362,118060.0,118050.0,0.17356973]
[1753874626456,0.64160362,118060.0,118050.0,0.00415]
[1753874626899,0.63518364,118060.0,118050.0,0.00415]
[1753874627542,0.63518364,118060.0,118050.0,0.17356973]
[1753874627759,0.63313364,118060.0,118050.0,0.17356973]
[1753874628256,0.63313415,118060.0,118050.0,0.00415]
[1753874628475,0.63313415,118060.0,118050.0,0.17356973]
[1753874628701,0.62723307,118060.0,118050.0,0.00415]
[1753874628916,0.63313436,118060.0,118050.0,0.00415]
[1753874629127,0.62922307,118060.0,118050.0,0.00415]
[1753874629816,0.62922307,118060.0,118050.0,0.20057973]
[1753874629817,0.43353741,118060.0,118050.0,0.20057973]
[1753874630050,0.44200717,118060.0,118050.0,0.20057973]
[1753874630266,0.43025993,118060.0,118050.0,0.20057973]
[1753874630696,0.43025986,118060.0,118050.0,0.20905064]
[1753874630911,0.43873005,118060.0,118050.0,0.20057973]
[1753874631129,0.41331976,118060.0,118050.0,0.21802875]
[1753874631341,0.42847964,118060.0,118050.0,0.2349705]
[1753874631579,0.46658202,118060.0,118050.0,0.2349705]
[1753874631760,0.47505228,118060.0,118050.0,0.21802875]
[1753874632022,0.49873221,118060.0,118050.0,0.20267973]
[1753874632269,0.49026202,118060.0,118050.0,0.19948973]
[1753874632482,0.49026202,118060.0,118050.0,0.20796064]
[1753874632979,0.49873221,118060.0,118050.0,0.19948973]
[1753874633192,0.49873221,118060.0,118050.0,0.20796064]
[1753874633411,0.49873221,118060.0,118050.0,0.19948973]
[1753874633625,0.49026202,118060.0,118050.0,0.20796064]
[1753874633840,0.49026202,118060.0,118050.0,0.24344148]
[1753874634876,0.49026202,118060.0,118050.0,0.23497064]
[1753874635860,0.43598202,118060.0,118050.0,0.23497064]
[1753874636074,0.43598202,118060.0,118050.0,0.24344148]
[1753874636290,0.44445221,118060.0,118050.0,0.22649973]
[1753874636476,0.49993221,118060.0,118050.0,0.21802875]
[1753874636940,0.49993214,118060.0,118050.0,0.22649973]
[1753874637175,0.49146202,118060.0,118050.0,0.23497057]
[1753874637390,0.49146202,118060.0,118050.0,0.56235251]
[1753874637391,0.45084214,118060.0,118050.0,0.56235251]
[1753874637603,0.45084214,118060.0,118050.0,0.25191203]
[1753874638376,0.45084214,118060.0,118050.0,0.26038265]
[1753874638587,0.44237238,118060.0,118050.0,0.25191203]
[1753874638788,0.44237238,118060.0,118050.0,0.57082306]
[1753874639014,0.36449,118060.0,118050.0,0.57082256]
[1753874639636,0.34879,118060.0,118050.0,0.57082256]
[1753874640254,0.35469489,118060.0,118050.0,0.57082256]
[1753874640467,0.36444054,118060.0,118050.0,0.56982256]
[1753874640924,0.36344054,118060.0,118050.0,0.56982256]
[1753874641134,0.36444054,118060.0,118050.0,0.56982256]
[1753874642199,0.36444054,118060.0,118050.0,0.58542256]
[1753874642830,0.36444127,118060.0,118050.0,0.56982256]
[1753874643252,0.36444127,118060.0,118050.0,0.2509116]
[1753874643525,0.4216734,118060.0,118050.0,0.56135215]
[1753874643734,0.36444127,118060.0,118050.0,0.19848959]
[1753874643949,0.42928103,118060.0,118050.0,0.33256966]
[1753874644163,0.44079101,118060.0,118050.0,0.18786875]
[1753874644371,0.45773139,118060.0,118050.0,0.32194875]
[1753874644584,0.45773139,118060.0,118050.0,0.01844902]
[1753874644585,0.61866701,118060.0,118050.0,0.01844902]
[1753874644816,1.00198912,118060.0,118050.0,0.13504]
[1753874645032,1.05644072,118060.0,118050.0,0.001]
[1753874645247,1.04856671,118060.0,118050.0,0.13504]
[1753874645466,1.04856671,118060.0,118050.0,0.13508]
[1753874645686,1.04856665,118060.0,118050.0,0.13508]
[1753874645901,1.05644056,118060.0,118050.0,0.13508]
[1753874646170,1.48091786,118060.0,118050.0,0.001]
[1753874646593,1.45417496,118060.0,118050.0,0.001]
[1753874646810,1.11542967,118060.0,118050.0,0.001]
[1753874647028,1.55991015,118060.0,118050.0,0.001]
[1753874647246,0.21135057,118050.0,118040.0,0.13404]
[1753874647501,0.62990956,118050.0,118040.0,0.13404]
[1753874647703,0.99545956,118050.0,118040.0,0.13404]
[1753874649130,1.00045956,118050.0,118040.0,0.13504]
[1753874650712,0.69001908,118050.0,118040.0,0.13504]
[1753874650940,0.69848985,118050.0,118040.0,0.13504]
[1753874651664,1.00893033,118050.0,118040.0,0.13504]
[1753874652334,1.00893033,118050.0,118040.0,0.13604]
[1753874652549,1.01193033,118050.0,118040.0,0.13604]
[1753874653238,1.03739333,118050.0,118040.0,0.13604]
[1753874653916,0.72695285,118050.0,118040.0,0.13604]
[1753874654142,1.03739333,118050.0,118040.0,0.13604]
[1753874655011,0.72695285,118050.0,118040.0,0.13604]
[1753874655296,1.03739333,118050.0,118040.0,0.13604]
[1753874655725,1.03739333,118050.0,118040.0,0.002]
[1753874655943,0.94539015,118050.0,118040.0,0.002]
[1753874656164,1.25583063,118050.0,118040.0,0.002]
[1753874657259,1.25581995,118050.0,118040.0,0.002]
[1753874657909,1.59581995,118050.0,118040.0,0.002]
[1753874658122,1.60367908,118050.0,118040.0,0.002]
[1753874658337,1.59581995,118050.0,118040.0,0.002]
[1753874659010,1.28537947,118050.0,118040.0,0.002]
[1753874659259,1.59581995,118050.0,118040.0,0.002]
[1753874660443,1.59578854,118050.0,118040.0,0.002]
[1753874660886,1.59578845,118050.0,118040.0,0.002]
[1753874661149,1.60364541,118050.0,118040.0,0.002]
[1753874661371,1.59578845,118050.0,118040.0,0.002]
[1753874661871,1.59578828,118050.0,118040.0,0.002]
[1753874662088,1.65083599,118050.0,118040.0,0.002]
[1753874662325,1.34039536,118050.0,118040.0,0.002]
[1753874662557,1.64494244,118050.0,118040.0,0.002]
[1753874662783,1.33450196,118050.0,118040.0,0.002]
[1753874663020,1.62253087,118050.0,118040.0,0.002]
[1753874663706,1.84753087,118050.0,118040.0,0.002]
[1753874663941,2.13122845,118050.0,118040.0,0.002]
[1753874664400,0.55796857,118020.0,118010.0,1.52348]
[1753874664628,1.17116365,118020.0,118010.0,1.52348]
[1753874664854,1.53810365,118020.0,118010.0,1.52360361]
[1753874665312,1.54671958,118020.0,118010.0,1.52360361]
[1753874666275,1.55171958,118020.0,118010.0,1.52460361]
[1753874666824,1.2412791,118020.0,118010.0,1.52460361]
[1753874667056,1.57718958,118020.0,118010.0,1.52460361]
[1753874668022,1.57818958,118020.0,118010.0,1.52460361]
[1753874668261,1.2677491,118020.0,118010.0,1.52460361]
[1753874668483,1.57818958,118020.0,118010.0,1.52460361]
[1753874670106,1.2677491,118020.0,118010.0,1.52460361]
[1753874670568,1.57818958,118020.0,118010.0,1.52460361]
[1753874671233,1.2677491,118020.0,118010.0,1.52460361]
[1753874671453,1.57818958,118020.0,118010.0,1.52460361]
[1753874671906,1.77818958,118020.0,118010.0,1.52460361]
[1753874674828,1.4677491,118020.0,118010.0,1.52460361]
[1753874675049,1.77818958,118020.0,118010.0,1.52460361]
[1753874675261,1.78408686,118020.0,118010.0,1.52460361]
[1753874675694,1.47364638,118020.0,118010.0,1.52460361]
[1753874675931,1.78408686,118020.0,118010.0,1.52460361]
[1753874677140,1.77818958,118020.0,118010.0,1.52460361]
[1753874677367,1.77796505,118020.0,118010.0,1.52460361]
[1753874678093,1.79959017,118020.0,118010.0,1.52460361]
[1753874679788,1.79959037,118020.0,118010.0,1.52460361]
[1753874680276,1.81766257,118020.0,118010.0,1.52460361]
[1753874681454,1.87096738,118020.0,118010.0,1.52460361]
[1753874681688,1.8505259,118020.0,118010.0,1.52460361]
[1753874682208,1.8455259,118020.0,118010.0,1.52360361]
[1753874682685,1.8525259,118020.0,118010.0,1.52360361]
[1753874683381,1.8515259,118020.0,118010.0,1.52360361]
[1753874683867,1.87419297,118020.0,118010.0,1.52360361]
[1753874684074,1.87819297,118020.0,118010.0,1.52360361]
[1753874685269,1.56775249,118020.0,118010.0,1.52360361]
[1753874685499,1.87819297,118020.0,118010.0,1.52360361]
[1753874686457,2.31569297,118020.0,118010.0,1.52360361]
[1753874688345,2.31569297,118020.0,118010.0,1.52021756]
[1753874688575,2.30979501,118020.0,118010.0,1.52021756]
[1753874688815,2.31569139,118020.0,118010.0,1.52021756]
[1753874689042,2.31569139,118020.0,118010.0,1.51892571]
[1753874689273,6.42535939,118020.0,118010.0,1.51892571]
[1753874689523,6.48040762,118020.0,118010.0,1.51892571]
[1753874689755,6.63040762,118020.0,118010.0,1.43394622]
[1753874691419,6.57535939,118020.0,118010.0,1.43394622]
[1753874692567,6.26491891,118020.0,118010.0,1.43394622]
[1753874692792,6.57535939,118020.0,118010.0,1.43394622]
[1753874693016,6.44155939,118020.0,118010.0,1.43394622]
[1753874693238,6.57519939,118020.0,118010.0,1.43394622]
[1753874693957,5.97793891,118020.0,118010.0,1.43602622]
[1753874694191,2.31235139,118020.0,118010.0,1.45863622]
[1753874694422,2.31235139,118020.0,118010.0,1.43602622]
[1753874694644,2.3154215,118020.0,118010.0,1.43394622]
[1753874695099,2.31457419,118020.0,118010.0,1.43394622]
[1753874695948,2.00413371,118020.0,118010.0,1.43602622]
[1753874696170,2.31150419,118020.0,118010.0,1.43602622]
[1753874696604,2.56242419,118020.0,118010.0,1.43602622]
[1753874696825,2.42399075,118020.0,118010.0,1.43602622]
[1753874697050,2.56250333,118020.0,118010.0,1.43602622]
[1753874697274,2.56246333,118020.0,118010.0,1.43602622]
[1753874697528,2.05202285,118020.0,118010.0,1.43602622]
[1753874697765,2.36246333,118020.0,118010.0,1.43602622]
[1753874698220,2.36553333,118020.0,118010.0,1.43602622]
[1753874698676,2.36553333,118020.0,118010.0,1.43394622]
[1753874699393,2.36553333,118020.0,118010.0,1.43602622]
[1753874699854,2.37300566,118020.0,118010.0,1.43602622]
[1753874700120,2.36993566,118020.0,118010.0,1.43602622]
[1753874700346,2.10488502,118020.0,118010.0,1.43602622]
[1753874700566,2.02681502,118020.0,118010.0,1.46180622]
[1753874700774,2.3144355,118020.0,118010.0,1.46180622]
[1753874700992,2.2690439,118020.0,118010.0,1.59544622]
[1753874702343,1.72788342,118020.0,118010.0,1.59544622]
[1753874702561,1.9048039,118020.0,118010.0,1.59544622]
[1753874702780,1.92745048,118020.0,118010.0,1.59544622]
[1753874703205,1.92744068,118020.0,118010.0,1.59544622]
[1753874703423,1.92753955,118020.0,118010.0,1.59544622]
[1753874703634,1.92353955,118020.0,118010.0,1.59544622]
[1753874703849,1.91653955,118020.0,118010.0,1.59544622]
[1753874704064,1.92053955,118020.0,118010.0,1.59544622]
[1753874704500,1.91644068,118020.0,118010.0,1.59534735]
[1753874704929,1.91944068,118020.0,118010.0,1.59534735]
[1753874705166,1.6090002,118020.0,118010.0,1.59534735]
[1753874705365,1.6090002,118020.0,118010.0,1.61194735]
[1753874705621,1.6090002,118020.0,118010.0,1.62754735]
[1753874705832,1.6090002,118020.0,118010.0,1.61194735]
[1753874706048,1.5788608,118020.0,118010.0,1.59534735]
[1753874706523,1.5848608,118020.0,118010.0,1.59534735]
[1753874706740,1.46926414,118020.0,118010.0,1.62754735]
[1753874707620,1.12064821,118020.0,118010.0,1.62754735]
[1753874707869,1.04464369,118020.0,118010.0,1.62754735]
[1753874708087,1.05311683,118020.0,118010.0,1.62754735]
[1753874708309,1.13759413,118020.0,118010.0,1.62754735]
[1753874708740,1.12912135,118020.0,118010.0,1.62754735]
[1753874708952,1.1207602,118020.0,118010.0,1.62754735]
[1753874710087,0.6832602,118020.0,118010.0,1.62754735]
[1753874711393,0.5987829,118020.0,118010.0,1.62754735]
[1753874712297,0.58072819,118020.0,118010.0,1.62754735]
[1753874713468,0.42821101,118020.0,118010.0,1.79702451]
[1753874713685,0.59767381,118020.0,118010.0,1.79702451]
[1753874713906,0.40279225,118020.0,118010.0,2.14186164]
[1753874714117,0.45402094,118020.0,118010.0,2.15033528]
[1753874714562,0.45402094,118020.0,118010.0,2.15880885]
[1753874714775,0.44802125,118020.0,118010.0,2.15880885]
[1753874714987,0.38742044,118020.0,118010.0,2.1672822]
[1753874715196,0.37894774,118020.0,118010.0,2.1672822]
[1753874715402,0.38294774,118020.0,118010.0,2.1672822]
[1753874715618,0.37147525,118020.0,118010.0,2.1672822]
[1753874716251,0.36361399,118020.0,118010.0,2.1672822]
[1753874716466,0.35961399,118020.0,118010.0,2.1672822]
[1753874716915,0.36661399,118020.0,118010.0,2.1682822]
[1753874717605,0.36361399,118020.0,118010.0,1.85684172]
[1753874717823,0.36361399,118020.0,118010.0,2.1672822]
[1753874719128,0.36561399,118020.0,118010.0,2.1682822]
[1753874719353,0.36561399,118020.0,118010.0,2.2527595]
[1753874720630,0.36361399,118020.0,118010.0,2.2517595]
[1753874721082,0.35961399,118020.0,118010.0,2.2517595]
[1753874721308,0.33798269,118020.0,118010.0,2.5917595]
[1753874721550,0.33998269,118020.0,118010.0,2.5917595]
[1753874722874,0.33798269,118020.0,118010.0,2.5917595]
[1753874723323,0.34098269,118020.0,118010.0,2.5927595]
[1753874724205,0.33798269,118020.0,118010.0,2.5917595]
[1753874724439,0.33898269,118020.0,118010.0,2.5937595]
[1753874725644,0.34098269,118020.0,118010.0,2.44367048]
[1753874725852,0.34098269,118020.0,118010.0,2.57679048]
[1753874726114,0.33898269,118020.0,118010.0,2.57579048]
[1753874726309,0.33898269,118020.0,118010.0,2.13223]
[1753874726527,0.33898269,118020.0,118010.0,2.57579048]
[1753874726756,0.33898269,118020.0,118010.0,2.5932395]
[1753874726979,0.37064532,118020.0,118010.0,2.23575048]
[1753874727201,0.37653802,118020.0,118010.0,2.06199698]
[1753874727431,0.37653802,118020.0,118010.0,2.419446]
[1753874727653,0.39225132,118020.0,118010.0,2.07944607]
[1753874727871,0.38377869,118020.0,118010.0,2.22099942]
[1753874728094,0.39225118,118020.0,118010.0,2.22099942]
[1753874728805,0.40072374,118020.0,118010.0,2.22099942]
[1753874729679,0.38377869,118020.0,118010.0,2.22099942]
[1753874729930,0.40172395,118020.0,118010.0,2.22399942]
[1753874730130,0.36158869,118020.0,118010.0,2.59549942]
[1753874730577,0.33998269,118020.0,118010.0,2.59549942]
[1753874731926,0.34587702,118020.0,118010.0,2.59549942]
[1753874732164,0.33998269,118020.0,118010.0,2.59549942]
[1753874732604,0.36159791,118020.0,118010.0,2.59549942]
[1753874733790,0.36159994,118020.0,118010.0,2.59549942]
[1753874734700,0.36159994,118020.0,118010.0,2.28505894]
[1753874734956,0.36159994,118020.0,118010.0,2.59549942]
[1753874735409,0.38478994,118020.0,118010.0,2.28505894]
[1753874735628,0.38478994,118020.0,118010.0,2.59549942]
[1753874735870,0.36159994,118020.0,118010.0,2.59549942]
[1753874736564,0.36159994,118020.0,118010.0,2.61127942]
[1753874736784,0.36159994,118020.0,118010.0,2.30083894]
[1753874737224,0.34587775,118020.0,118010.0,2.61127942]
[1753874737456,0.36160652,118020.0,118010.0,2.61127942]
[1753874737706,0.38479652,118020.0,118010.0,2.61127942]
[1753874738146,0.38479652,118020.0,118010.0,2.44352942]
[1753874738565,0.42969436,118020.0,118010.0,2.55395942]
[1753874738793,0.42969436,118020.0,118010.0,2.42091942]
[1753874739043,0.39851908,118020.0,118010.0,2.21805846]
[1753874739284,0.44666456,118020.0,118010.0,2.14844851]
[1753874739528,0.44666456,118020.0,118010.0,2.15692208]
[1753874739768,0.45513755,118020.0,118010.0,1.65002738]
[1753874740011,0.60765545,118020.0,118010.0,1.47207637]
[1753874740282,0.69899812,118020.0,118010.0,1.45262735]
[1753874740518,0.69052675,118020.0,118010.0,1.58562735]
[1753874740759,0.69252675,118020.0,118010.0,1.61255015]
[1753874740995,0.69252675,118020.0,118010.0,1.78102738]
[1753874740996,0.69899967,118020.0,118010.0,1.78102738]
[1753874741272,0.71494536,118020.0,118010.0,1.79505487]